Workbook

Sheet Übersicht
D1: Eidgenössisches Departement für Verteidigung, Bevölkerungsschutz und Sport VBS Bundesamt für Bevölkerungsschutz BABS Labor Spiez
A3: Vereinfachter rechnerischer Nachweis der schocksicheren Befestigungen
A5: Für den rechnerischen Nachweis der schocksicheren Befestigungen werden die bei einer Schockbelastung auf die Befestigungen (Anker, Dübel) eins Einbauteils wirkenden Kräfte (Befestigungskräfte) berechnet.
A7: Die aufgrund der Schockbelastung auf das Einbauteil wirkenden Kräfte werden als statische Ersatzlasten berücksichtigt, welche im Massenschwerpunkt des Einbauteils angreifen.
A9: Die Befestigungskräfte S sind grundsätzlich für Schockeinwirkungen in allen Raumrichtungen x, y und z, jeweils in positiver und negativer Richtung zu berechnen. Für den Nachweis sind die maximalen Befestigungskräfte Smax massgebend.
A11: Beim vereinfachten rechnerischen Nachweis wird vorausgesetzt, dass das Einbauteil ideal steif ist und die Befestigungen (Anker, Dübel) gleichmässig belastet werden (Lastausgleich).
A13: Für die sechs abgebildeten Situationen (Befestigungsorte) lassen sich mit den vorliegenden Arbeitsblättern die für den Schocksicherheitsnachweis benötigten Befestigungkräfte S für den Schutzgrad "Basis" und "3 bar" berechnen:
A15: Eingaben (Masse des Einbauteils, Lage des Massenschwerpunkts, Anzahl Befestigungen, Abmessungen) in den gelb markierten Feldern
A16: Resultate (Befestigungskräfte) werden in den grün hinterlegten Feldern angezeigt
A18: Befestigung am Boden | B18: Befestigung an der Decke | C18: Befestigung an der Wand | D18: Befestigung auf einer Wandkonsole | E18: Befestigung am Boden und der Wand | F18: Befestigung an der Decke und der Wand
F21: dash@bbs 2018

Sheet Boden
F1: Eidgenössisches Departement für Verteidigung, Bevölkerungsschutz und Sport VBS Bundesamt für Bevölkerungsschutz BABS Labor Spiez
A2: Befestigung des Einbauteils am Boden
A4: Schutzgrad | D4: Basis
A7: Einbauteil
A8: Masse | B8: m | C8: [kg] | D8: 125
A9: Anzahl Befestigungen (Dübel, Anker) | B9: n | C9: [-] | D9: 6
A10: Abmessungen | B10: bx | C10: [mm] | D10: 800
B11: ex | C11: [mm] | D11: 100
B12: by | C12: [mm] | D12: 1200
B13: ey | C13: [mm] | D13: 150
B14: hz | C14: [mm] | D14: 600
A17: Befestigungskraft | F17: Nachweis der Tragsicherheit
A18: bei Schockbelastung in x-Richtung | B18: Sx | C18: [kN] | D18: =(D$8*Hilfstabelle!D6/D$9*(1+4*(D$14/D10)^2)^0.5)/1000 -> 5.868410279 | F18: Vom BABS für schocksichere Befestigungen in Schutzbauten zugelassener Dübel/Anker wählen. Zulässige Last Rzul gemäss Zivilschutz Komponenten Datenbank:
A19: bei Schockbelastung in y-Richtung | B19: Sy | C19: [kN] | D19: =(D$8*Hilfstabelle!D6/D$9*(1+4*(D$14/D12)^2)^0.5)/1000 -> 4.603559773
A20: bei Schockbelastung in z-Richtung | B20: Sz+ | C20: [kN] | D20: =(D8*(Hilfstabelle!D6-9.81)/D9*(1+2*D11/D10)*(1+2*D13/D12))/1000 -> 4.766927083 | F20: https://www.zkdb.vbs.admin.ch
A21: Maximale Befestigungskraft | B21: Smax | C21: [kN] | D21: =MAX(D18:D20) -> 5.868410279 | F21: Rzul ≥ Smax
A24: Vereinfachter rechnerischer Nachweis der schocksicheren Befestigungen | G24: Datum: | H24: 2018-10-03
A25: Apparat, Einrichtung, Fabrikat, Typ, Baureihe | G25: Visum: | H25: dash

Sheet Decke
F1: Eidgenössisches Departement für Verteidigung, Bevölkerungsschutz und Sport VBS Bundesamt für Bevölkerungsschutz BABS Labor Spiez
A2: Befestigung des Einbauteils an der Decke
A4: Schutzgrad | D4: Basis
A7: Einbauteil
A8: Masse | B8: m | C8: [kg] | D8: 100
A9: Anzahl Befestigungen (Dübel, Anker) | B9: n | C9: [-] | D9: 6
A10: Abmessungen | B10: bx | C10: [mm] | D10: 800
B11: ex | C11: [mm] | D11: 100
B12: by | C12: [mm] | D12: 1200
B13: ey | C13: [mm] | D13: 150
B14: hz | C14: [mm] | D14: 400
A17: Befestigungskraft | F17: Nachweis der Tragsicherheit
A18: bei Schockbelastung in x-Richtung | B18: Sx | C18: [kN] | D18: =$D$8/$D$9*((Hilfstabelle!D7)^2+(2*Hilfstabelle!D7*$D$14/D10+9.81)^2)^0.5/1000 -> 3.800218784 | F18: Vom BABS für schocksichere Befestigungen in Schutzbauten zugelassener Dübel/Anker wählen. Zulässige Last Rzul gemäss Zivilschutz Komponenten Datenbank
A19: bei Schockbelastung in y-Richtung | B19: Sy | C19: [kN] | D19: =$D$8/$D$9*((Hilfstabelle!D7)^2+(2*Hilfstabelle!D7*$D$14/D12+9.81)^2)^0.5/1000 -> 3.223384309
A20: bei Schockbelastung in z-Richtung | B20: Sz- | C20: [kN] | D20: =D8*(Hilfstabelle!D7+9.81)/D9*(1+2*D11/D10)*(1+2*D13/D12)/1000 -> 4.324479167 | F20: https://www.zkdb.vbs.admin.ch
A21: Maximale Befestigungskraft | B21: Smax | C21: [kN] | D21: =MAX(D18:D20) -> 4.324479167 | F21: Rzul ≥ Smax
A24: Vereinfachter rechnerischer Nachweis der schocksicheren Befestigungen | G24: Datum: | H24: 2018-10-03
A25: Apparat, Einrichtung, Fabrikat, Typ, Baureihe | G25: Visum: | H25: dash

Sheet Wand
F1: Eidgenössisches Departement für Verteidigung, Bevölkerungsschutz und Sport VBS Bundesamt für Bevölkerungsschutz BABS Labor Spiez
A2: Befestigung des Einbauteils an der Wand
A4: Schutzgrad | D4: Basis
A7: Einbauteil
A8: Masse | B8: m | C8: [kg] | D8: 100
A9: Anzahl Befestigungen (Dübel, Anker) | B9: n | C9: [-] | D9: 6
A10: Abmessungen | B10: bx | C10: [mm] | D10: 800
B11: ex | C11: [mm] | D11: 100
B12: bz | C12: [mm] | D12: 1200
B13: ez | C13: [mm] | D13: 150
B14: hy | C14: [mm] | D14: 500
A17: Befestigungskraft | F17: Nachweis der Tragsicherheit
A18: bei Schockbelastung in x-Richtung | B18: Sx | C18: [kN] | D18: =(D8/D9*((Hilfstabelle!D8)^2+(9.81^2)+(4*(D14^2))*(Hilfstabelle!D8/D10+9.81/D12)^2)^0.5)/1000 -> 4.279066008 | F18: Vom BABS für schocksichere Befestigungen in Schutzbauten zugelassener Dübel/Anker wählen. Zulässige Last Rzul gemäss Zivilschutz Komponenten Datenbank
A19: bei Schockbelastung in y-Richtung | B19: Sy | C19: [kN] | D19: =(D8/D9*((9.81^2)+((Hilfstabelle!D8*(1+(2*D11/D10))*(1+(2*D13/D12))+(2*9.81*D14/D12)))^2)^0.5)/1000 -> 4.208437646
A20: bei Schockbelastung in z-Richtung | B20: Sz- | C20: [kN] | D20: =(D8*(Hilfstabelle!D8+9.81)/D9*(1+(4*(D14/D12)^2))^0.5)/1000 -> 3.602694614 | F20: https://www.zkdb.vbs.admin.ch
A21: Maximale Befestigungskraft | B21: Smax | C21: [kN] | D21: =MAX(D18:D20) -> 4.279066008 | F21: Rzul ≥ Smax
A24: Vereinfachter rechnerischer Nachweis der schocksicheren Befestigungen | G24: Datum: | H24: 2018-10-03
A25: Apparat, Einrichtung, Fabrikat, Typ, Baureihe | G25: Visum: | H25: dash

Sheet Wandkonsole
F1: Eidgenössisches Departement für Verteidigung, Bevölkerungsschutz und Sport VBS Bundesamt für Bevölkerungsschutz BABS Labor Spiez
A2: Befestigung des Einbauteils auf einer Konsole an der Wand (Wandkonsole)
A4: Schutzgrad | D4: Basis
A7: Einbauteil
A8: Masse | B8: m | C8: [kg] | D8: 65
A9: Anzahl Konsolen | B9: k | C9: [-] | D9: 2
A10: Anzahl Befestigungen pro Konsole | B10: nK | C10: [-] | D10: 3
A11: Abmessungen | B11: bx | C11: [mm] | D11: 600
B12: hy | C12: [mm] | D12: 300
B13: hz | C13: [mm] | D13: 250
B14: bz | C14: [mm] | D14: 500
B15: z1 | C15: [mm] | D15: 50
B16: z2 | C16: [mm] | D16: 350
B17: z3 | C17: [mm] | D17: 450
B18: z4 | C18: [mm]
A21: Befestigungskraft | F21: Nachweis der Tragsicherheit
A22: bei Schockbelastung in x-Richtung | B22: Sx | C22: [kN] | D22: =(D8/D9*(1/(D10^2)*((Hilfstabelle!D9)^2+(9.81^2))+D12^2*(2*Hilfstabelle!D9/(D10*D11)+9.81/SUM(Wandkonsole!D15:D18))^2)^0.5)/1000 -> 2.476979728 | F22: Vom BABS für schocksichere Befestigungen in Schutzbauten zugelassener Dübel/Anker wählen. Zulässige Last Rzul gemäss Zivilschutz Komponenten Datenbank
A23: bei Schockbelastung in y+-Richtung | B23: Sy+ | C23: [kN] | D23: =($D$8/$D$9*((9.81/$D$10)^2+((Hilfstabelle!D9*($D$13+$D$14)+9.81*$D$12)/SUM($D$15:$D$18))^2)^0.5)/1000 -> 4.594454296
A24: bei Schockbelastung in y--Richtung | B24: Sy- | C24: [kN] | D24: =(D8/D9*((9.81/D10)^2+((Hilfstabelle!D9*(D13+D14)-(9.81*D12))/(D10*(D14-((D15+D16+D17+D18)/D10))))^2)^0.5)/1000 -> 5.713213529 | F24: https://www.zkdb.vbs.admin.ch
A25: bei Schockbelastung in z+-Richtung | B25: Sz+ | C25: [kN] | D25: =(D8/D9*((9.81/D10)^2+((Hilfstabelle!D9-9.81)*D12/(D10*(D14-((D15+D16+D17+D18)/D10))))^2)^0.5)/1000 -> 2.199169374
A26: bei Schockbelastung in z--Richtung | B26: Sz- | C26: [kN] | D26: =($D$8/$D$9*((9.81/$D$10)^2+((Hilfstabelle!D9+9.81)*$D$12/SUM($D$15:$D$18))^2)^0.5)/1000 -> 1.907768284
A27: Maximale Befestigungskraft | B27: Smax | C27: [kN] | D27: =MAX(D22:D26) -> 5.713213529 | F27: Rzul ≥ Smax
A30: Vereinfachter rechnerischer Nachweis der schocksicheren Befestigungen | G30: Datum: | H30: 2018-10-03
A31: Apparat, Einrichtung, Fabrikat, Typ, Baureihe | G31: Visum: | H31: dash

Sheet Boden-Wand
F1: Eidgenössisches Departement für Verteidigung, Bevölkerungsschutz und Sport VBS Bundesamt für Bevölkerungsschutz BABS Labor Spiez
A2: Befestigung des Einbauteils am Boden und der Wand
A4: Schutzgrad | D4: Basis
A7: Einbauteil
A8: Masse | B8: m | C8: [kg] | D8: 200
A9: Anzahl Befestigungen am Boden | B9: nB | C9: [-] | D9: 4
A10: Anzahl Befestigungen an der Wand | B10: nW | C10: [-] | D10: 2
A11: Abmessungen | B11: bx | C11: [mm] | D11: 800
B12: by | C12: [mm] | D12: 600
B13: bz | C13: [mm] | D13: 2000
B14: hy | C14: [mm] | D14: 300
B15: hz | C15: [mm] | D15: 1000
A18: Befestigungskraft | F18: Nachweis der Tragsicherheit
A19: bei Schockbelastung in x-Richtung | B19: Sx, B | C19: [kN] | D19: =$D$8*Hilfstabelle!D10*((1/($D$10+$D$9))+(2*$D$14/($D$10*$D$11+$D$9*$D$12)))/1000 -> 9.895833333 | F19: Vom BABS für schocksichere Befestigungen in Schutzbauten zugelassener Dübel/Anker wählen. Zulässige Last Rzul gemäss Zivilschutz Komponenten Datenbank
A20: bei Schockbelastung in x-Richtung | B20: Sx,W | C20: [kN] | D20: =$D$8*Hilfstabelle!D10*((1/($D$10+$D$9))^2+(2*$D$14/($D$10*$D$11+$D$9*$D$12))^2)^0.5/1000 -> 7.007095858
A21: bei Schockbelastung in y+-Richtung | B21: Sy+,B | C21: [kN] | D21: =($D$8*Hilfstabelle!$D$10/$D$9)*(1-($D$15/$D$13))/1000 -> 3.90625 | F21: https://www.zkdb.vbs.admin.ch
A22: bei Schockbelastung in y+-Richtung | B22: Sy+,W | C22: [kN] | D22: =$D$8*Hilfstabelle!$D$10/$D$10*($D$15/$D$13)/1000 -> 7.8125
A23: bei Schockbelastung in z+-Richtung | B23: Sz+,B | C23: [kN] | D23: =($D$8*(Hilfstabelle!$D$10-9.81)/$D$9)*($D$14/$D$12)/1000 -> 3.661
A24: bei Schockbelastung in z+-Richtung | B24: Sz+,W | C24: [kN] | D24: =($D$8*(Hilfstabelle!$D$10-9.81)/$D$10)*(1-($D$14/$D$12))/1000 -> 7.322
A25: Maximale Befestigungskraft | B25: Smax | C25: [kN] | D25: =MAX(D19:D24) -> 9.895833333 | F25: Rzul ≥ Smax
A28: Vereinfachter rechnerischer Nachweis der schocksicheren Befestigungen | G28: Datum: | H28: 2018-10-03
A29: Apparat, Einrichtung, Fabrikat, Typ, Baureihe | G29: Visum: | H29: dash

Sheet Decke-Wand
F1: Eidgenössisches Departement für Verteidigung, Bevölkerungsschutz und Sport VBS Bundesamt für Bevölkerungsschutz BABS Labor Spiez
A2: Befestigung des Einbauteils an der Decke und der Wand
A4: Schutzgrad | D4: Basis
A7: Einbauteil
A8: Masse | B8: m | C8: [kg] | D8: 150
A9: Anzahl Befestigungen (Dübel, Anker) | B9: n | C9: [-] | D9: 8
A10: Abmessungen | B10: bx | C10: [mm] | D10: 1200
B11: by | C11: [mm] | D11: 900
B12: bz | C12: [mm] | D12: 750
B13: hy | C13: [mm] | D13: 450
B14: hz | C14: [mm] | D14: 350
A17: Befestigungskraft | F17: Nachweis der Tragsicherheit
A18: bei Schockbelastung in x-Richtung | B18: Sx,D | C18: [kN] | D18: =$D$8/$D$9*((Hilfstabelle!$D$11)^2+4*((Hilfstabelle!$D$11*$D$13/$D$10)+9.81)^2)^0.5/1000 -> 3.893971658 | F18: Vom BABS für schocksichere Befestigungen in Schutzbauten zugelassener Dübel/Anker wählen. Zulässige Last Rzul gemäss Zivilschutz Komponenten Datenbank
A19: bei Schockbelastung in x-Richtung | B19: Sx,W | C19: [kN] | D19: =$D$8/$D$9*((Hilfstabelle!$D$11)^2+(9.81)^2+4*(Hilfstabelle!$D$11*$D$13/$D$10)^2)^0.5/1000 -> 3.666725798
A20: bei Schockbelastung in y+-Richtung | B20: Sy+,D | C20: [kN] | D20: =2*D8/D9*((Hilfstabelle!D11)^2+(9.81*D13/D11)^2)^0.5/1000 -> 5.862261372 | F20: https://www.zkdb.vbs.admin.ch
A21: bei Schockbelastung in y+-Richtung | B21: Sy+,W | C21: [kN] | D21: =2*D8/D9*((Hilfstabelle!D11*D14/D12)^2+(9.81)^2)^0.5/1000 -> 2.759010449
A22: bei Schockbelastung in z--Richtung | B22: Sz-,D | C22: [kN] | D22: =2*$D$8/$D$9*(Hilfstabelle!$D$11+9.81)*D13/D11/1000 -> 3.113625
A23: bei Schockbelastung in z--Richtung | B23: Sz-,W | C23: [kN] | D23: =2*$D$8/$D$9*(Hilfstabelle!$D$11+9.81)/1000 -> 6.22725
A24: Maximale Befestigungskraft | B24: Smax | C24: [kN] | D24: =MAX(D18:D23) -> 6.22725 | F24: Rzul ≥ Smax
A27: Vereinfachter rechnerischer Nachweis der schocksicheren Befestigungen | G27: Datum: | H27: 2018-10-03
A28: Apparat, Einrichtung, Fabrikat, Typ, Baureihe | G28: Visum: | H28: dash

Sheet Hilfstabelle (hidden)
A1: Schutzgrade
A2: Basis
A3: 3 bar
A5: Eingesetzter a x DLF Wert
A6: a x DLF | B6: Boden | C6: [m/s2] | D6: =IF(Boden!D4="Basis",156.25,IF(Boden!D4="3 bar",256)) -> 156.25
A7: a x DLF | B7: Decke | C7: [m/s2] | D7: =IF(Decke!D4="Basis",156.25,IF(Decke!D4="3 bar",256)) -> 156.25
A8: a x DLF | B8: Wand | C8: [m/s2] | D8: =IF(Wand!D4="Basis",156.25,IF(Wand!D4="3 bar",256)) -> 156.25
A9: a x DLF | B9: Wandkonsole | C9: [m/s2] | D9: =IF(Wandkonsole!D4="Basis",156.25,IF(Wandkonsole!D4="3 bar",256)) -> 156.25
A10: a x DLF | B10: Boden-Wand | C10: [m/s2] | D10: =IF('Boden-Wand'!D4="Basis",156.25,IF('Boden-Wand'!D4="3 bar",256)) -> 156.25
A11: a x DLF | B11: Decke-Wand | C11: [m/s2] | D11: =IF('Decke-Wand'!D4="Basis",156.25,IF('Decke-Wand'!D4="3 bar",256)) -> 156.25
